[Event "Late-Titled-Tuesday-Blitz-October-17-2023"]
[Site "Chess.com"]
[Date "2023.10.17"]
[Round "5"]
[White "jamengrand"]
[Black "Defend1r"]
[Result "0-1"]
[WhiteElo "2334"]
[BlackElo "2496"]
[TimeControl "180+1"]
[EndTime "14:53:37 PDT"]
[Termination "Defend1r won by resignation"]

1. e4 {[%clk 0:03:00.9]} 1... c5 {[%clk 0:02:55.1]} 2. Be2 {[%clk 0:02:59.7]}
2... Nc6 {[%clk 0:02:44.2]} 3. f4 {[%clk 0:02:59.1]} 3... d5 {[%clk 0:02:39.2]}
4. d3 {[%clk 0:02:58.5]} 4... dxe4 {[%clk 0:02:38.5]} 5. dxe4 {[%clk 0:02:59.4]}
5... Qxd1+ {[%clk 0:02:37.8]} 6. Bxd1 {[%clk 0:03:00.3]} 6... e5 {[%clk
0:02:36.1]} 7. Nc3 {[%clk 0:02:49.3]} 7... Nf6 {[%clk 0:02:35.2]} 8. Nd5 {[%clk
0:02:46.2]} 8... Bd6 {[%clk 0:02:27.7]} 9. Nxf6+ {[%clk 0:02:42.5]} 9... gxf6
{[%clk 0:02:27.2]} 10. f5 {[%clk 0:02:42.7]} 10... b6 {[%clk 0:02:21.8]} 11. c3
{[%clk 0:02:33.5]} 11... Bb7 {[%clk 0:02:21.2]} 12. Bb3 {[%clk 0:02:17]} 12...
Na5 {[%clk 0:02:17.6]} 13. Bd5 {[%clk 0:02:09.8]} 13... Bxd5 {[%clk 0:02:16.5]}
14. exd5 {[%clk 0:02:09.9]} 14... c4 {[%clk 0:02:16.8]} 15. Be3 {[%clk
0:01:49.7]} 15... h5 {[%clk 0:02:15.6]} 16. Nh3 {[%clk 0:01:43.9]} 16... Ke7
{[%clk 0:02:14.3]} 17. Nf2 {[%clk 0:01:42.2]} 17... Rhg8 {[%clk 0:01:58.6]} 18.
g3 {[%clk 0:01:42.1]} 18... Nb7 {[%clk 0:01:58.3]} 19. Ne4 {[%clk 0:01:41.1]}
19... Rac8 {[%clk 0:01:58]} 20. O-O-O {[%clk 0:01:33.4]} 20... Bb8 {[%clk
0:01:54.6]} 21. Rhg1 {[%clk 0:01:20.8]} 21... Nd6 {[%clk 0:01:54.4]} 22. Nxd6
{[%clk 0:01:15.8]} 22... Bxd6 {[%clk 0:01:55.3]} 23. h4 {[%clk 0:01:04.2]} 23...
Rg4 {[%clk 0:01:54.1]} 24. Rde1 {[%clk 0:00:56.9]} 24... Bc5 {[%clk 0:01:53.7]}
25. Kd2 {[%clk 0:00:48.1]} 25... Kd6 {[%clk 0:01:52.1]} 26. Rd1 {[%clk 0:00:44]}
26... Re4 {[%clk 0:01:38.5]} 27. Bxc5+ {[%clk 0:00:42.4]} 27... Rxc5 {[%clk
0:01:39.4]} 28. Kc2 {[%clk 0:00:39.2]} 28... Rxd5 {[%clk 0:01:39.1]} 29. Rxd5+
{[%clk 0:00:38.1]} 29... Kxd5 {[%clk 0:01:40]} 30. Rd1+ {[%clk 0:00:37.7]} 30...
Kc6 {[%clk 0:01:40.5]} 31. Rd2 {[%clk 0:00:37]} 31... Re3 {[%clk 0:01:39.3]} 32.
Rg2 {[%clk 0:00:37]} 32... Rf3 {[%clk 0:01:39.3]} 33. g4 {[%clk 0:00:36]} 33...
hxg4 {[%clk 0:01:40.2]} 34. Rxg4 {[%clk 0:00:27.8]} 34... b5 {[%clk 0:01:39.8]}
35. h5 {[%clk 0:00:22.4]} 35... Rh3 {[%clk 0:01:40]} 36. Rg7 {[%clk 0:00:20]}
36... Rxh5 {[%clk 0:01:39.6]} 37. Rxf7 {[%clk 0:00:20.6]} 37... Rxf5 {[%clk
0:01:39.5]} 38. Rxa7 {[%clk 0:00:20.8]} 38... Rf2+ {[%clk 0:01:39.2]} 39. Kc1
{[%clk 0:00:19.6]} 39... f5 {[%clk 0:01:39.7]} 40. a4 {[%clk 0:00:18.4]} 40...
bxa4 {[%clk 0:01:38.7]} 41. Rxa4 {[%clk 0:00:18.2]} 41... Kd5 {[%clk 0:01:38.2]}
42. Ra5+ {[%clk 0:00:15.4]} 42... Ke4 {[%clk 0:01:38.5]} 43. Rc5 {[%clk
0:00:15.5]} 43... Kd3 {[%clk 0:01:37.1]} 44. Rd5+ {[%clk 0:00:15.7]} 44... Ke4
{[%clk 0:01:37.1]} 45. Rc5 {[%clk 0:00:16.6]} 45... f4 {[%clk 0:01:37.5]} 46.
Rxc4+ {[%clk 0:00:16.2]} 46... Kd3 {[%clk 0:01:38]} 0-1

[Event "Late-Titled-Tuesday-Blitz-October-17-2023"]
[Site "Chess.com"]
[Date "2023.10.17"]
[Round "5"]
[White "German_Bazeev"]
[Black "biostatistician"]
[Result "1-0"]
[WhiteElo "2801"]
[BlackElo "2587"]
[TimeControl "180+1"]
[EndTime "14:53:44 PDT"]
[Termination "German_Bazeev won by checkmate"]

1. d4 {[%clk 0:02:58.3]} 1... Nf6 {[%clk 0:02:59.7]} 2. Nf3 {[%clk 0:02:58.4]}
2... g6 {[%clk 0:02:59.8]} 3. c4 {[%clk 0:02:58.9]} 3... Bg7 {[%clk 0:02:59.8]}
4. Nc3 {[%clk 0:02:59.8]} 4... O-O {[%clk 0:02:59.7]} 5. Bg5 {[%clk 0:02:59.9]}
5... b6 {[%clk 0:02:59.3]} 6. Qd2 {[%clk 0:02:57.1]} 6... Bb7 {[%clk 0:02:59.4]}
7. Bh6 {[%clk 0:02:57.8]} 7... Ne4 {[%clk 0:02:56.6]} 8. Nxe4 {[%clk 0:02:57.5]}
8... Bxe4 {[%clk 0:02:57.5]} 9. h4 {[%clk 0:02:57]} 9... Bxf3 {[%clk 0:02:15.4]}
10. gxf3 {[%clk 0:02:55.6]} 10... e6 {[%clk 0:02:11]} 11. Bg5 {[%clk 0:02:42.3]}
11... f6 {[%clk 0:02:09.6]} 12. Bf4 {[%clk 0:02:41.9]} 12... Nc6 {[%clk
0:02:02.9]} 13. h5 {[%clk 0:02:41.1]} 13... g5 {[%clk 0:01:59.5]} 14. h6 {[%clk
0:02:39.8]} 14... Bh8 {[%clk 0:01:58.2]} 15. Bh2 {[%clk 0:02:34.3]} 15... f5
{[%clk 0:01:53.4]} 16. Rg1 {[%clk 0:02:30.2]} 16... Bxd4 {[%clk 0:01:46.7]} 17.
Rxg5+ {[%clk 0:01:51.9]} 17... Kf7 {[%clk 0:01:28.8]} 18. f4 {[%clk 0:01:41]}
18... Bf6 {[%clk 0:01:22.5]} 19. O-O-O {[%clk 0:01:40.8]} 19... d6 {[%clk
0:01:01]} 20. Bg2 {[%clk 0:01:39.6]} 20... Qd7 {[%clk 0:00:55.4]} 21. e4 {[%clk
0:01:22.6]} 21... Bxg5 {[%clk 0:00:40.7]} 22. fxg5 {[%clk 0:01:23.5]} 22... Kg8
{[%clk 0:00:26.3]} 23. e5 {[%clk 0:01:07.1]} 23... Rad8 {[%clk 0:00:15]} 24. g6
{[%clk 0:01:01.5]} 24... hxg6 {[%clk 0:00:13.2]} 25. Qg5 {[%clk 0:01:02.1]}
25... Kh7 {[%clk 0:00:10.5]} 26. Bxc6 {[%clk 0:01:00.2]} 26... Qxc6 {[%clk
0:00:07.7]} 27. Qe7+ {[%clk 0:01:00.2]} 27... Kxh6 {[%clk 0:00:08]} 28. Bf4+
{[%clk 0:01:00.3]} 28... Kh5 {[%clk 0:00:07.2]} 29. Qg5# {[%clk 0:01:00.4]} 1-0

[Event "Late-Titled-Tuesday-Blitz-October-17-2023"]
[Site "Chess.com"]
[Date "2023.10.17"]
[Round "5"]
[White "Necromon"]
[Black "campochess"]
[Result "1-0"]
[WhiteElo "2506"]
[BlackElo "2196"]
[TimeControl "180+1"]
[EndTime "14:53:45 PDT"]
[Termination "Necromon won by resignation"]

1. Nf3 {[%clk 0:02:55.4]} 1... c5 {[%clk 0:02:59.2]} 2. g3 {[%clk 0:02:54.7]}
2... Nc6 {[%clk 0:02:59.2]} 3. Bg2 {[%clk 0:02:54.8]} 3... g6 {[%clk 0:02:59.4]}
4. d4 {[%clk 0:02:50]} 4... cxd4 {[%clk 0:02:58.2]} 5. Nxd4 {[%clk 0:02:50]}
5... Bg7 {[%clk 0:02:58]} 6. Nb3 {[%clk 0:02:50.3]} 6... d6 {[%clk 0:02:55.6]}
7. O-O {[%clk 0:02:48.7]} 7... Nf6 {[%clk 0:02:55.2]} 8. c4 {[%clk 0:02:45.9]}
8... O-O {[%clk 0:02:54.5]} 9. Nc3 {[%clk 0:02:45.7]} 9... a6 {[%clk 0:02:44.6]}
10. Bg5 {[%clk 0:02:33.9]} 10... h6 {[%clk 0:02:41.9]} 11. Bf4 {[%clk
0:02:29.9]} 11... Ng4 {[%clk 0:02:37.3]} 12. Rc1 {[%clk 0:02:03.1]} 12... Nge5
{[%clk 0:02:31.8]} 13. Nd5 {[%clk 0:02:03.3]} 13... Be6 {[%clk 0:02:15.4]} 14.
Qd2 {[%clk 0:01:48.3]} 14... Kh7 {[%clk 0:02:13.8]} 15. Be3 {[%clk 0:01:46.5]}
15... Nd7 {[%clk 0:02:10.1]} 16. Nd4 {[%clk 0:01:44.4]} 16... Nxd4 {[%clk
0:02:08.5]} 17. Bxd4 {[%clk 0:01:44.7]} 17... f6 {[%clk 0:02:03.6]} 18. b3
{[%clk 0:01:40.2]} 18... Bf7 {[%clk 0:02:03.3]} 19. Bb2 {[%clk 0:01:29.1]} 19...
Rc8 {[%clk 0:02:02.2]} 20. Rfd1 {[%clk 0:01:28.1]} 20... Nc5 {[%clk 0:01:54.9]}
21. e4 {[%clk 0:01:17.6]} 21... Ne6 {[%clk 0:01:52.4]} 22. f4 {[%clk 0:01:17.2]}
22... Nc5 {[%clk 0:01:50.9]} 23. e5 {[%clk 0:01:15.3]} 23... dxe5 {[%clk
0:01:40.3]} 24. fxe5 {[%clk 0:01:15.5]} 24... Bxd5 {[%clk 0:01:38.7]} 25. Qxd5
{[%clk 0:01:10.4]} 25... Qxd5 {[%clk 0:01:37.2]} 26. Rxd5 {[%clk 0:01:10.5]}
26... fxe5 {[%clk 0:01:31.6]} 27. Re1 {[%clk 0:01:07.7]} 27... b6 {[%clk
0:01:19.8]} 28. Bxe5 {[%clk 0:01:06.1]} 28... Bf6 {[%clk 0:01:10.3]} 29. b4
{[%clk 0:00:59.3]} 29... Na4 {[%clk 0:01:04.5]} 30. Bxf6 {[%clk 0:00:59.3]}
30... exf6 {[%clk 0:01:03.2]} 31. Re7+ {[%clk 0:00:59.3]} 31... Kg8 {[%clk
0:01:00.3]} 32. Rdd7 {[%clk 0:00:59.7]} 1-0

[Event "Late-Titled-Tuesday-Blitz-October-17-2023"]
[Site "Chess.com"]
[Date "2023.10.17"]
[Round "5"]
[White "Nor1lsk"]
[Black "RichardShtivelband"]
[Result "1-0"]
[WhiteElo "2714"]
[BlackElo "2187"]
[TimeControl "180+1"]
[EndTime "14:53:49 PDT"]
[Termination "Nor1lsk won by resignation"]

1. e4 {[%clk 0:03:00.9]} 1... c6 {[%clk 0:02:58.1]} 2. d4 {[%clk 0:03:00.5]}
2... d5 {[%clk 0:02:58.1]} 3. f3 {[%clk 0:03:01]} 3... Nf6 {[%clk 0:02:55.7]} 4.
e5 {[%clk 0:02:45.4]} 4... Nfd7 {[%clk 0:02:53.2]} 5. f4 {[%clk 0:02:46]} 5...
e6 {[%clk 0:02:53.2]} 6. Nf3 {[%clk 0:02:46.4]} 6... c5 {[%clk 0:02:53.1]} 7. c3
{[%clk 0:02:46.7]} 7... Nc6 {[%clk 0:02:53.3]} 8. Be3 {[%clk 0:02:46.7]} 8...
Qb6 {[%clk 0:02:51.8]} 9. Qd2 {[%clk 0:02:46.1]} 9... a5 {[%clk 0:02:47.6]} 10.
Bd3 {[%clk 0:02:41.6]} 10... cxd4 {[%clk 0:02:39.9]} 11. cxd4 {[%clk 0:02:41.3]}
11... a4 {[%clk 0:02:35.2]} 12. O-O {[%clk 0:02:38.8]} 12... a3 {[%clk 0:02:25]}
13. b3 {[%clk 0:02:32.7]} 13... Bb4 {[%clk 0:02:21.2]} 14. Qf2 {[%clk
0:02:32.3]} 14... f5 {[%clk 0:02:17.7]} 15. Rc1 {[%clk 0:02:14.8]} 15... Qa5
{[%clk 0:02:03.1]} 16. Bd2 {[%clk 0:02:13.2]} 16... O-O {[%clk 0:01:53.3]} 17.
Bxb4 {[%clk 0:02:09.9]} 17... Nxb4 {[%clk 0:01:53.2]} 18. Bf1 {[%clk 0:02:09.5]}
18... h6 {[%clk 0:01:43.1]} 19. Nc3 {[%clk 0:02:04.6]} 19... Nb8 {[%clk
0:01:17.7]} 20. Nb5 {[%clk 0:02:00]} 20... N8c6 {[%clk 0:01:17.6]} 21. Nd6
{[%clk 0:01:50.3]} 21... b6 {[%clk 0:01:14]} 22. Rc3 {[%clk 0:01:41.9]} 22...
Ba6 {[%clk 0:01:12.2]} 23. Rac1 {[%clk 0:01:40.9]} 23... Bxf1 {[%clk 0:01:08.4]}
24. Kxf1 {[%clk 0:01:40.8]} 24... Qa6+ {[%clk 0:01:01.5]} 25. Kg1 {[%clk
0:01:38.2]} 25... Nd3 {[%clk 0:00:54.3]} 26. Rxd3 {[%clk 0:01:34.3]} 26... Qxd3
{[%clk 0:00:53.3]} 27. Rxc6 {[%clk 0:01:34.9]} 27... Qb1+ {[%clk 0:00:30.6]} 28.
Ne1 {[%clk 0:01:34]} 28... Rab8 {[%clk 0:00:20.9]} 29. Kf1 {[%clk 0:01:30.3]}
29... b5 {[%clk 0:00:18.2]} 30. Qd2 {[%clk 0:01:28.3]} 30... b4 {[%clk 0:00:17]}
31. Rc1 {[%clk 0:01:16.5]} 31... Qb2 {[%clk 0:00:17.2]} 32. Qxb2 {[%clk
0:01:15.7]} 32... axb2 {[%clk 0:00:17.2]} 33. Rb1 {[%clk 0:01:16.2]} 33... Ra8
{[%clk 0:00:17.4]} 34. Rxb2 {[%clk 0:01:16.4]} 34... Ra3 {[%clk 0:00:17.5]} 35.
Nd3 {[%clk 0:01:16.5]} 35... Ra5 {[%clk 0:00:16.9]} 36. Nxb4 {[%clk 0:01:14.5]}
36... Rb8 {[%clk 0:00:16.9]} 37. Nc6 {[%clk 0:01:10.3]} 1-0

[Event "Late-Titled-Tuesday-Blitz-October-17-2023"]
[Site "Chess.com"]
[Date "2023.10.17"]
[Round "5"]
[White "dosto07"]
[Black "Lennis93"]
[Result "0-1"]
[WhiteElo "2513"]
[BlackElo "2704"]
[TimeControl "180+1"]
[EndTime "14:53:55 PDT"]
[Termination "Lennis93 won on time"]

1. e4 {[%clk 0:03:00.9]} 1... c5 {[%clk 0:02:58.4]} 2. Nf3 {[%clk 0:02:59.5]}
2... Nc6 {[%clk 0:02:59.1]} 3. Bb5 {[%clk 0:02:59.8]} 3... g6 {[%clk 0:02:58.9]}
4. Bxc6 {[%clk 0:02:59.3]} 4... dxc6 {[%clk 0:02:59.8]} 5. d3 {[%clk 0:02:59.2]}
5... Bg7 {[%clk 0:03:00.3]} 6. h3 {[%clk 0:02:59.8]} 6... Qc7 {[%clk 0:02:56.8]}
7. Nc3 {[%clk 0:02:59]} 7... e5 {[%clk 0:02:56.9]} 8. Be3 {[%clk 0:02:59.4]}
8... b6 {[%clk 0:02:56.1]} 9. Qd2 {[%clk 0:02:59.9]} 9... h6 {[%clk 0:02:49.4]}
10. a4 {[%clk 0:02:47.8]} 10... Nf6 {[%clk 0:02:40.8]} 11. a5 {[%clk 0:02:37.8]}
11... Rb8 {[%clk 0:02:40.9]} 12. axb6 {[%clk 0:02:37.3]} 12... axb6 {[%clk
0:02:41.8]} 13. O-O {[%clk 0:02:37.5]} 13... Nh5 {[%clk 0:02:39.7]} 14. Ne2
{[%clk 0:02:29.2]} 14... g5 {[%clk 0:02:39.1]} 15. Ng3 {[%clk 0:02:27.4]} 15...
Nf4 {[%clk 0:02:39.4]} 16. Ra2 {[%clk 0:02:00.5]} 16... Bf6 {[%clk 0:02:21.5]}
17. Bxf4 {[%clk 0:01:50.9]} 17... gxf4 {[%clk 0:02:17.7]} 18. Nh5 {[%clk
0:01:41.3]} 18... Bd8 {[%clk 0:02:05.4]} 19. Qc3 {[%clk 0:01:26.8]} 19... f6
{[%clk 0:02:03.1]} 20. Kh2 {[%clk 0:00:42.3]} 20... Qf7 {[%clk 0:02:02.1]} 21.
g4 {[%clk 0:00:38.5]} 21... Qxa2 {[%clk 0:02:00.9]} 22. b3 {[%clk 0:00:35.2]}
22... Qa5 {[%clk 0:01:52.8]} 23. Qb2 {[%clk 0:00:29.7]} 23... Ra8 {[%clk
0:01:52.8]} 24. Nxe5 {[%clk 0:00:28.8]} 24... fxe5 {[%clk 0:01:16.7]} 25. Qxe5+
{[%clk 0:00:28.2]} 25... Kd7 {[%clk 0:01:17.3]} 26. Nxf4 {[%clk 0:00:21.4]}
26... Re8 {[%clk 0:01:14.7]} 27. Qf5+ {[%clk 0:00:13.2]} 27... Kc7 {[%clk
0:01:13.7]} 28. Qf7+ {[%clk 0:00:06.1]} 28... Re7 {[%clk 0:01:13.8]} 29. Qf8
{[%clk 0:00:05]} 29... Qd2 {[%clk 0:01:09]} 30. Ng6 {[%clk 0:00:04.2]} 30... Qg5
{[%clk 0:01:04.5]} 31. Nxe7 {[%clk 0:00:02.9]} 31... Bxe7 {[%clk 0:01:04.5]} 32.
Qf3 {[%clk 0:00:01.3]} 32... Bd6+ {[%clk 0:01:03.9]} 0-1

[Event "Late-Titled-Tuesday-Blitz-October-17-2023"]
[Site "Chess.com"]
[Date "2023.10.17"]
[Round "5"]
[White "mfwagnerpeixoto"]
[Black "becemix"]
[Result "1-0"]
[WhiteElo "2333"]
[BlackElo "2464"]
[TimeControl "180+1"]
[EndTime "14:54:01 PDT"]
[Termination "mfwagnerpeixoto won on time"]

1. d4 {[%clk 0:03:00.9]} 1... e6 {[%clk 0:02:59.3]} 2. Nf3 {[%clk 0:02:59.2]}
2... Nf6 {[%clk 0:02:59.2]} 3. Bf4 {[%clk 0:02:58.4]} 3... d5 {[%clk 0:02:59.6]}
4. e3 {[%clk 0:02:58.2]} 4... Nbd7 {[%clk 0:02:50.4]} 5. Bd3 {[%clk 0:02:53.7]}
5... Be7 {[%clk 0:02:45.5]} 6. h3 {[%clk 0:02:48.7]} 6... O-O {[%clk 0:02:41.7]}
7. O-O {[%clk 0:02:47]} 7... Re8 {[%clk 0:02:40]} 8. c4 {[%clk 0:02:43.5]} 8...
Nf8 {[%clk 0:02:35.8]} 9. Nc3 {[%clk 0:02:38.1]} 9... Ng6 {[%clk 0:02:31.9]} 10.
Bh2 {[%clk 0:02:35.9]} 10... c6 {[%clk 0:02:20.5]} 11. Rc1 {[%clk 0:02:34.3]}
11... Bd6 {[%clk 0:02:12.2]} 12. Ne5 {[%clk 0:02:30.4]} 12... Qe7 {[%clk
0:01:28.8]} 13. f4 {[%clk 0:02:26.1]} 13... c5 {[%clk 0:01:23.8]} 14. cxd5
{[%clk 0:02:11.1]} 14... exd5 {[%clk 0:01:23.4]} 15. Nb5 {[%clk 0:02:07.9]}
15... cxd4 {[%clk 0:01:16.3]} 16. exd4 {[%clk 0:01:51.6]} 16... Bb8 {[%clk
0:00:27]} 17. Qc2 {[%clk 0:01:34]} 17... a6 {[%clk 0:00:23.7]} 18. Nc7 {[%clk
0:01:16.2]} 18... Bxc7 {[%clk 0:00:18]} 19. Qxc7 {[%clk 0:01:17.1]} 19... Nf8
{[%clk 0:00:11]} 20. Qb6 {[%clk 0:01:04.1]} 20... Ne4 {[%clk 0:00:10.7]} 21.
Bxe4 {[%clk 0:00:58.2]} 21... dxe4 {[%clk 0:00:11.1]} 22. Rc7 {[%clk 0:00:55.1]}
22... Qe6 {[%clk 0:00:10.1]} 23. Qxe6 {[%clk 0:00:49.1]} 23... Rxe6 {[%clk
0:00:08.7]} 24. Rxf7 {[%clk 0:00:40.7]} 1-0

[Event "Late-Titled-Tuesday-Blitz-October-17-2023"]
[Site "Chess.com"]
[Date "2023.10.17"]
[Round "5"]
[White "maximnovik"]
[Black "LogoCzar"]
[Result "0-1"]
[WhiteElo "2491"]
[BlackElo "2396"]
[TimeControl "180+1"]
[EndTime "14:54:02 PDT"]
[Termination "LogoCzar won by resignation"]

1. e4 {[%clk 0:03:00]} 1... c5 {[%clk 0:02:43.5]} 2. Nf3 {[%clk 0:02:59.2]} 2...
Nc6 {[%clk 0:02:42.6]} 3. Bb5 {[%clk 0:02:58.3]} 3... d5 {[%clk 0:02:41.8]} 4.
exd5 {[%clk 0:02:52.9]} 4... Qxd5 {[%clk 0:02:41.4]} 5. Nc3 {[%clk 0:02:52.8]}
5... Qe6+ {[%clk 0:02:40.6]} 6. Kf1 {[%clk 0:02:51.5]} 6... a6 {[%clk
0:02:39.5]} 7. Be2 {[%clk 0:02:37.4]} 7... b5 {[%clk 0:02:38.4]} 8. d3 {[%clk
0:02:34.2]} 8... Bb7 {[%clk 0:02:37.9]} 9. Be3 {[%clk 0:02:29.2]} 9... Qf5
{[%clk 0:02:24.9]} 10. Ne4 {[%clk 0:02:15.3]} 10... e6 {[%clk 0:02:21.9]} 11.
Nfd2 {[%clk 0:01:56.3]} 11... O-O-O {[%clk 0:02:18.6]} 12. a4 {[%clk 0:01:52.5]}
12... Nf6 {[%clk 0:02:17.4]} 13. axb5 {[%clk 0:01:51.2]} 13... axb5 {[%clk
0:02:15.6]} 14. Bf3 {[%clk 0:01:51.1]} 14... Nd5 {[%clk 0:02:09.2]} 15. Bxc5
{[%clk 0:01:48.1]} 15... Nf4 {[%clk 0:02:05.5]} 16. Be3 {[%clk 0:01:32.6]} 16...
Ne5 {[%clk 0:01:53.7]} 17. Ra7 {[%clk 0:01:26.8]} 17... Nxf3 {[%clk 0:01:50.6]}
18. Qxf3 {[%clk 0:01:26.6]} 18... Nd5 {[%clk 0:01:42]} 19. Qxf5 {[%clk
0:01:21.4]} 19... Nxe3+ {[%clk 0:01:41]} 20. fxe3 {[%clk 0:01:21]} 20... exf5
{[%clk 0:01:40.5]} 21. Ng5 {[%clk 0:01:14.4]} 21... Bc5 {[%clk 0:01:40]} 22.
Nxf7 {[%clk 0:01:10.8]} 22... Bxa7 {[%clk 0:01:38.3]} 23. Nxh8 {[%clk
0:01:09.5]} 23... Rxh8 {[%clk 0:01:32.5]} 24. d4 {[%clk 0:01:03.3]} 24... Re8
{[%clk 0:01:30.9]} 25. Kf2 {[%clk 0:01:03.3]} 25... f4 {[%clk 0:01:29.7]} 26.
Nf3 {[%clk 0:00:51.2]} 26... Rxe3 {[%clk 0:01:24.9]} 27. c3 {[%clk 0:00:50.3]}
27... b4 {[%clk 0:01:23.7]} 28. Rc1 {[%clk 0:00:49.3]} 28... bxc3 {[%clk
0:01:21.6]} 29. bxc3 {[%clk 0:00:49.5]} 29... Bxf3 {[%clk 0:01:17.3]} 30. gxf3
{[%clk 0:00:49.7]} 30... Kd7 {[%clk 0:01:14.6]} 31. Kg2 {[%clk 0:00:40.9]} 31...
g5 {[%clk 0:01:12.2]} 32. Ra1 {[%clk 0:00:35.8]} 32... Bb6 {[%clk 0:01:10.8]}
33. Rb1 {[%clk 0:00:28.7]} 33... Kc6 {[%clk 0:01:09.7]} 34. Rc1 {[%clk
0:00:28.5]} 34... h5 {[%clk 0:01:04.3]} 35. Rc2 {[%clk 0:00:24.6]} 35... g4
{[%clk 0:01:00.1]} 36. fxg4 {[%clk 0:00:23.3]} 36... hxg4 {[%clk 0:01:01]} 37.
Rf2 {[%clk 0:00:18.8]} 37... f3+ {[%clk 0:00:58.8]} 0-1

[Event "Late-Titled-Tuesday-Blitz-October-17-2023"]
[Site "Chess.com"]
[Date "2023.10.17"]
[Round "5"]
[White "zajka-molotok"]
[Black "cthulhuuu"]
[Result "1-0"]
[WhiteElo "2560"]
[BlackElo "2408"]
[TimeControl "180+1"]
[EndTime "14:54:18 PDT"]
[Termination "zajka-molotok won by resignation"]

1. e4 {[%clk 0:03:00.9]} 1... d6 {[%clk 0:03:00]} 2. d4 {[%clk 0:03:00.5]} 2...
Nf6 {[%clk 0:03:00.9]} 3. Nc3 {[%clk 0:03:00]} 3... c6 {[%clk 0:03:01.4]} 4. f4
{[%clk 0:02:59]} 4... Qb6 {[%clk 0:03:02.2]} 5. Nf3 {[%clk 0:02:54.9]} 5... Bg4
{[%clk 0:03:02.3]} 6. Be2 {[%clk 0:02:44.6]} 6... e6 {[%clk 0:03:02.5]} 7. O-O
{[%clk 0:02:37.6]} 7... d5 {[%clk 0:03:02.7]} 8. e5 {[%clk 0:02:33.3]} 8... Nfd7
{[%clk 0:03:03.3]} 9. Na4 {[%clk 0:02:12.7]} 9... Qa5 {[%clk 0:02:59.5]} 10. b3
{[%clk 0:02:11.8]} 10... b5 {[%clk 0:02:49.6]} 11. Bd2 {[%clk 0:02:07.9]} 11...
Qc7 {[%clk 0:02:47.9]} 12. Nb2 {[%clk 0:02:06.5]} 12... b4 {[%clk 0:02:41.3]}
13. Nd3 {[%clk 0:02:03.4]} 13... c5 {[%clk 0:02:36.4]} 14. dxc5 {[%clk
0:01:59.7]} 14... Nxc5 {[%clk 0:02:36.9]} 15. Nxb4 {[%clk 0:01:30.4]} 15... Ne4
{[%clk 0:02:36.1]} 16. Bb5+ {[%clk 0:01:22.2]} 16... Nd7 {[%clk 0:02:36.5]} 17.
Bxd7+ {[%clk 0:01:21.1]} 17... Kxd7 {[%clk 0:02:22.6]} 18. Nd3 {[%clk
0:01:10.2]} 18... Qb6+ {[%clk 0:02:22.8]} 19. Kh1 {[%clk 0:01:07.9]} 19... Ba3
{[%clk 0:01:59.8]} 20. c4 {[%clk 0:01:06.2]} 20... dxc4 {[%clk 0:01:52.6]} 21.
bxc4 {[%clk 0:01:02.9]} 21... Rhd8 {[%clk 0:01:41.7]} 22. Qa4+ {[%clk
0:00:58.9]} 22... Kc8 {[%clk 0:01:13.6]} 23. Qxa3 {[%clk 0:00:57]} 23... Bxf3
{[%clk 0:01:09.9]} 24. Ba5 {[%clk 0:00:40.4]} 24... Qd4 {[%clk 0:00:52.6]} 25.
gxf3 {[%clk 0:00:33.9]} 25... Nd2 {[%clk 0:00:51.3]} 26. Bxd2 {[%clk 0:00:31.4]}
26... Qxd3 {[%clk 0:00:43.3]} 27. Qxd3 {[%clk 0:00:24]} 27... Rxd3 {[%clk
0:00:44.2]} 28. Rad1 {[%clk 0:00:22.1]} 28... Ra3 {[%clk 0:00:39.8]} 29. Bb4
{[%clk 0:00:20]} 29... Rxa2 {[%clk 0:00:39.1]} 30. Rd2 {[%clk 0:00:20.4]} 30...
a5 {[%clk 0:00:37.4]} 31. Rxa2 {[%clk 0:00:19.7]} 31... axb4 {[%clk 0:00:34.9]}
32. Rxa8+ {[%clk 0:00:19]} 1-0

[Event "Late-Titled-Tuesday-Blitz-October-17-2023"]
[Site "Chess.com"]
[Date "2023.10.17"]
[Round "5"]
[White "balachess2006"]
[Black "Lion_DL"]
[Result "1-0"]
[WhiteElo "2595"]
[BlackElo "2450"]
[TimeControl "180+1"]
[EndTime "14:54:19 PDT"]
[Termination "balachess2006 won on time"]

1. Nf3 {[%clk 0:02:56.5]} 1... d5 {[%clk 0:02:58.2]} 2. d4 {[%clk 0:02:56]} 2...
Nf6 {[%clk 0:02:57.1]} 3. c3 {[%clk 0:02:56]} 3... g6 {[%clk 0:02:54]} 4. Bf4
{[%clk 0:02:54.4]} 4... Bg7 {[%clk 0:02:54.5]} 5. e3 {[%clk 0:02:54.4]} 5... O-O
{[%clk 0:02:54.7]} 6. h3 {[%clk 0:02:54.9]} 6... a5 {[%clk 0:02:50.9]} 7. Nbd2
{[%clk 0:02:54.6]} 7... a4 {[%clk 0:02:51.1]} 8. Be2 {[%clk 0:02:54.8]} 8... c5
{[%clk 0:02:46.4]} 9. O-O {[%clk 0:02:54.5]} 9... Nc6 {[%clk 0:02:45.9]} 10. Ne5
{[%clk 0:02:54.5]} 10... Nxe5 {[%clk 0:02:41.1]} 11. Bxe5 {[%clk 0:02:55.4]}
11... Bf5 {[%clk 0:02:34]} 12. dxc5 {[%clk 0:02:46.4]} 12... Nd7 {[%clk
0:02:27.2]} 13. Bxg7 {[%clk 0:02:45.1]} 13... Kxg7 {[%clk 0:02:27.4]} 14. b4
{[%clk 0:02:44.8]} 14... axb3 {[%clk 0:02:25.5]} 15. Nxb3 {[%clk 0:02:45.1]}
15... Nf6 {[%clk 0:02:16.5]} 16. c4 {[%clk 0:02:37.7]} 16... Be6 {[%clk
0:02:05.5]} 17. cxd5 {[%clk 0:02:36.2]} 17... Bxd5 {[%clk 0:02:05.1]} 18. Bf3
{[%clk 0:02:31.1]} 18... Ra3 {[%clk 0:01:53.8]} 19. Qc1 {[%clk 0:02:23.2]} 19...
Ra4 {[%clk 0:01:46]} 20. Rd1 {[%clk 0:02:20]} 20... e6 {[%clk 0:01:36.9]} 21.
Qb2 {[%clk 0:02:17.6]} 21... Qe7 {[%clk 0:01:27.4]} 22. Bxd5 {[%clk 0:02:16.3]}
22... exd5 {[%clk 0:01:27.9]} 23. Rxd5 {[%clk 0:02:15]} 23... Kg8 {[%clk
0:01:28.5]} 24. Rd4 {[%clk 0:02:13.9]} 24... Rfa8 {[%clk 0:01:25]} 25. Rxa4
{[%clk 0:02:09.6]} 25... Rxa4 {[%clk 0:01:25.9]} 26. Nd4 {[%clk 0:02:09.4]}
26... Ne4 {[%clk 0:01:16]} 27. c6 {[%clk 0:02:06.7]} 27... bxc6 {[%clk
0:01:07.7]} 28. Nxc6 {[%clk 0:02:07.6]} 28... Qd6 {[%clk 0:00:50.1]} 29. Rc1
{[%clk 0:02:03.3]} 29... h5 {[%clk 0:00:40.8]} 30. Qc2 {[%clk 0:01:43]} 30...
Qa3 {[%clk 0:00:32.7]} 31. Nd4 {[%clk 0:01:16.5]} 31... Nd6 {[%clk 0:00:20.5]}
32. Qc7 {[%clk 0:01:04.4]} 32... Ra6 {[%clk 0:00:09.4]} 33. Rc6 {[%clk
0:00:45.3]} 33... Rxc6 {[%clk 0:00:07.7]} 34. Qxc6 {[%clk 0:00:46.2]} 34... Kg7
{[%clk 0:00:04.3]} 35. Qc2 {[%clk 0:00:45.6]} 1-0